[Event "DMP-III LIGA Senior PK 2020"]
[Site "Bystre"]
[Date "2020.07.10"]
[Round "5.21"]
[White "Babiarz, Arkadiusz"]
[Black "Chowaniec, Artur"]
[Result "1-0"]
[ECO "C44"]
[WhiteElo "1840"]
[BlackElo "1530"]
[Annotator "NA"]
[PlyCount "138"]
[EventDate "2020.07.05"]
[EventType "team-tourn"]
[EventCountry "POL"]
[SourceTitle "playchess.com"]
[Source "ChessBase"]
[SourceQuality "1"]
[TimeControl "5400+30"]

{[%evp 13,125,-13,32767,32767,32767,32767,32767,32767,32767,32767,32767,32767,32767,32767,32767,32767,32767,32767,32767,32767,32767,32767,32767,32767,61,32767,66,32767,32767,62,32767,32767,113,121,118,127,133,114,138,127,189,121,133,144,147,147,124,119,246,235,257,268,249,239,326,144,128,146,125,126,127,124,146,83,137,127,139,32767,32767,32767,32767,152,183,141,201,203,220,237,239,123,212,140,154,103,143,104,112,108,116,144,156,239,229,225,254,254,513,427,305,230,882,965,925,1880,1737,1012,1435,32767,32767,5366,12845,12845,5812,12846]} 1. e4 {[%emt 0:00:00]} e5 {[%emt 0:00:00]} 2. Nf3 {[%emt 0:00:00]} Nc6 {[%emt 0:00:36]} 3. c3 {[%emt 0:01:33]} Nf6 {[%emt 0:00:35]} 4. Qa4 {[%emt 0:00:35]} d6 {[%emt 0:00:55]} 5. d4 {[%emt 0:04:49]} Bd7 {[%emt 0:00:14]} 6. Qc2 {[%emt 0:00:50] C44: Ponziani Opening and Scotch Gambit.} Be7 {[%emt 0:00:43] [#]} 7. Bb5 $146 {[%emt 0:02:58]} ({Predecessor:} 7. d5 Nb8 8. c4 O-O 9. Be2 Ne8 10. Nc3 f5 11. exf5 Bxf5 12. Bd3 Bxd3 13. Qxd3 {½-½ (65) Hair,P (1829)-Shakya,R (1947) Auckland 2017}) 7... O-O {[%emt 0:02:27]} 8. O-O {[%emt 0:04:32]} Nxd4 {[%emt 0:00:22]} 9. Nxd4 {[%emt 0:00:06]} exd4 {[%emt 0:00:10]} 10. Bxd7 {[%emt 0:00:05]} d3 {[%emt 0:04:46]} 11. Qxd3 {[%emt 0:00:16]} Nxd7 {[%emt 0:00:16]} 12. Be3 {[%emt 0:00:42]} Ne5 {[%emt 0:00:27]} 13. Qe2 {[%emt 0:01:01]} a6 {[%emt 0:00:10]} 14. f4 {[%emt 0:00:27]} Nc6 {[%emt 0:02:23]} 15. Nd2 {[%emt 0:00:59]} d5 {[%emt 0:01:18]} 16. Rad1 {[%emt 0:02:41]} dxe4 {[%emt 0:00:52]} 17. Nxe4 {[%emt 0:00:24]} Qc8 {[%emt 0:00:12]} 18. f5 {[%emt 0:01:27]} f6 $1 {[%emt 0:01:20]} 19. Bc5 {[%emt 0:10:41]} Bxc5+ {[%emt 0:01:08]} 20. Nxc5 {[%emt 0:00:05]} Ne5 {[%emt 0:00:33]} 21. Ne6 {[%emt 0:00:25]} Re8 {[%emt 0:00:14]} 22. Rd5 {[%emt 0:05:19]} Rxe6 {[%emt 0:57:58]} (22... b5 $14) 23. fxe6 {[%emt 0:00:12]} Qxe6 {[%emt 0:00:07]} 24. Rfd1 {[%emt 0:00:55]} Re8 {[%emt 0:07:22]} 25. h3 {[%emt 0:04:45]} c6 {[%emt 0:02:19]} 26. Rd8 {[%emt 0:00:32]} h6 {[%emt 0:01:43]} 27. Qh5 {[%emt 0:02:42]} ({Better is} 27. R1d7 $18) 27... Nf7 {[%emt 0:01:23]} 28. Rxe8+ {[%emt 0:04:58]} Qxe8 {[%emt 0:00:12]} 29. Qg4 {[%emt 0:00:32]} Ne5 {[%emt 0:01:03]} 30. Qb4 {[%emt 0:01:39]} Qb8 {[%emt 0:02:22] [#]} (30... b5 $16 {was called for.}) 31. Qb6 $1 {[%emt 0:01:34]} Nf7 {[%emt 0:02:09]} 32. Rd7 {[%emt 0:00:31]} Qg3 {[%emt 0:00:16]} 33. Qf2 {[%emt 0:02:37]} ({Inferior is} 33. Qxb7 Qe1+ 34. Kh2 Qe5+ 35. g3 Qe2+ 36. Kh1 Qf1+ 37. Kh2 Qf2+ 38. Kh1 Qf1+ 39. Kh2 Qf2+ 40. Kh1 Qf1+ $11) 33... Qb8 {[%emt 0:00:10]} 34. Qe2 {[%emt 0:00:42]} (34. Qf5 $18 Qe8 35. Kf1) 34... Ne5 {[%emt 0:00:23]} 35. Rd4 {[%emt 0:00:30]} Kf7 {[%emt 0:02:34]} 36. Qh5+ {[%emt 0:00:22]} Ke7 {[%emt 0:01:44]} 37. Kh1 {[%emt 0:01:42]} Qe8 {[%emt 0:00:41]} 38. Qxe8+ {[%emt 0:00:13]} Kxe8 {[%emt 0:00:07]} 39. Kh2 {[%emt 0:00:44]} b5 {[%emt 0:00:26]} 40. Kg3 {[%emt 0:00:34]} Ke7 {[%emt 0:00:06]} 41. Kf4 {[%emt 0:00:15]} g6 {[%emt 0:00:09]} 42. Ke4 {[%emt 0:00:38]} Nd7 {[%emt 0:00:50]} 43. b4 {[%emt 0:00:54]} Nb6 {[%emt 0:01:33]} 44. Rd1 {[%emt 0:00:16]} Nd5 {[%emt 0:00:45]} 45. Kd4 {[%emt 0:02:39]} Kd6 {[%emt 0:00:24]} 46. a4 {[%emt 0:00:26]} (46. g4 $18) 46... h5 {[%emt 0:01:13]} 47. Ra1 {[%emt 0:01:57]} h4 {[%emt 0:00:31]} 48. axb5 {[%emt 0:01:22]} (48. a5 $18 {and White stays clearly on top.}) 48... axb5 {[%emt 0:00:11]} 49. Rg1 {[%emt 0:02:00]} Nf4 {[%emt 0:00:59]} 50. Rf1 {[%emt 0:00:42]} Nd5 {[%emt 0:00:29]} 51. Rf3 {[%emt 0:00:19]} f5 {[%emt 0:00:55]} 52. g3 {[%emt 0:00:43]} hxg3 {[%emt 0:01:01]} 53. Rxg3 {[%emt 0:00:05]} Ne7 {[%emt 0:00:38]} 54. h4 {[%emt 0:01:02]} (54. Rg1 $142) 54... Ke6 {[%emt 0:01:14]} 55. Kc5 {[%emt 0:01:54]} f4 {[%emt 0:00:23]} 56. Rg5 {[%emt 0:01:39]} f3 {[%emt 0:00:44]} 57. Rg3 {[%emt 0:00:11]} Nf5 {[%emt 0:01:03]} 58. Rxf3 {[%emt 0:00:41]} Nxh4 {[%emt 0:00:18]} 59. Rh3 {[%emt 0:00:07]} Nf5 {[%emt 0:00:24]} 60. Kxc6 {[%emt 0:00:22]} g5 {[%emt 0:00:12]} 61. Kxb5 {[%emt 0:01:06]} g4 {[%emt 0:00:07]} 62. Rh8 {[%emt 0:00:28]} Kf7 $18 {[%emt 0:00:43]} 63. Rh1 {[%emt 0:00:12]} Kg6 {[%emt 0:00:13]} 64. Ka6 {[%emt 0:00:18]} Kg5 {[%emt 0:00:12]} 65. b5 {[%emt 0:00:17]} Nd6 {[%emt 0:00:18]} 66. b6 {[%emt 0:00:13]} Kf4 {[%emt 0:00:22]} 67. b7 {[%emt 0:00:16]} Nxb7 {[%emt 0:00:12]} 68. Kxb7 {[%emt 0:00:04]} Ke3 {[%emt 0:00:08]} 69. c4 {[%emt 0:00:15]} Kd4 {[%emt 0:00:08]} 1-0

[Event "DMP-III LIGA Senior PK 2020"]
[Site "Bystre"]
[Date "2020.07.10"]
[Round "5.22"]
[White "Wrobel, Dariusz"]
[Black "Ziemniak, Piotr"]
[Result "0-1"]
[ECO "B50"]
[WhiteElo "1427"]
[BlackElo "1791"]
[Annotator "NA"]
[PlyCount "128"]
[EventDate "2020.07.05"]
[EventType "team-tourn"]
[EventCountry "POL"]
[SourceTitle "playchess.com"]
[Source "ChessBase"]
[SourceQuality "1"]
[TimeControl "5400+30"]

1. e4 c5 2. Nf3 d6 3. Be2 Nf6 4. d3 g6 5. Bg5 Bg7 6. c3 Nbd7 7. O-O h6 8. Bh4 O-O 9. Qb3 Qb6 10. Qc2 e5 11. Nbd2 g5 12. Bg3 Nh7 13. Nc4 Qc7 14. a4 Nb6 15. Ne3 Be6 16. h4 f6 17. Nh2 Qf7 18. a5 Nc8 19. c4 Ne7 20. Nd5 Nc6 21. Qd1 f5 22. hxg5 hxg5 23. Bh5 Qd7 24. exf5 Bxf5 25. Ne3 Be6 26. Bf3 Rab8 27. Nhg4 Nd4 28. Be4 Nf6 29. Nxf6+ Rxf6 30. Nd5 Rh6 31. Rb1 Kf7 32. Qd2 Rbh8 33. f3 Bf6 34. b4 Rh1+ 35. Kf2 Rxf1+ 36. Rxf1 Bd8 37. bxc5 Nb3 38. Qb2 Nxc5 39. Nc3 Bxa5 40. Nb5 Bb6 41. Ke1 a6 42. Nxd6+ Qxd6 43. Bxe5 Na4 44. Qa1 Qb4+ 45. Ke2 Ba5 46. Rd1 Nc3+ 47. Bxc3 Qxc3 48. Bxb7 Qc2+ 49. Ke3 Bb6+ 50. d4 Re8 51. Be4 Bxc4 52. Rd2 Qb3+ 53. Kf2 Qb4 54. Rd1 Qd6 55. Qc3 Bb5 56. Qb3+ Kg7 57. Qe3 Qf6 58. Kg3 Rd8 59. Rh1 Rh8 60. Rd1 g4 61. fxg4 Qh4+ 62. Kf4 Rf8+ 63. Bf5 Bc7+ 64. Ke4 Re8+ 0-1

[Event "DMP-III LIGA Senior PK 2020"]
[Site "Bystre"]
[Date "2020.07.10"]
[Round "5.23"]
[White "Wozniak, Grzegorz"]
[Black "Kielb, Miroslaw"]
[Result "1-0"]
[ECO "C50"]
[WhiteElo "1608"]
[BlackElo "1394"]
[Annotator "NA RC"]
[PlyCount "113"]
[EventDate "2020.07.05"]
[EventType "team-tourn"]
[EventCountry "POL"]
[SourceTitle "playchess.com"]
[Source "ChessBase"]
[SourceQuality "1"]
[TimeControl "5400+30"]

1. e4 {[%emt 0:00:00]} e5 {[%emt 0:00:00]} 2. Nf3 {[%emt 0:00:00]} Nc6 {[%emt 0:00:00]} 3. Bc4 {[%emt 0:00:00]} Bc5 {[%emt 0:00:00]} 4. O-O {[%emt 0:00:31]} Nf6 {[%emt 0:00:21]} 5. c3 {[%emt 0:02:03]} d6 {[%emt 0:04:49]} 6. d4 {[%emt 0:00:40]} exd4 {[%emt 0:01:10]} 7. cxd4 {[%emt 0:00:12]} Bb6 {[%emt 0:00:47]} 8. Nc3 {[%emt 0:03:15]} O-O {[%emt 0:01:17]} 9. Bg5 {[%emt 0:01:20]} Bg4 {[%emt 0:00:54]} 10. d5 {[%emt 0:11:32]} Nd4 {[%emt 0:05:47]} 11. Be2 {[%emt 0:01:47]} Nxe2+ {[%emt 0:05:06]} 12. Qxe2 {[%emt 0:00:29]} h6 {[%emt 0:00:33]} 13. Bh4 {[%emt 0:00:20]} g5 {[%emt 0:01:29]} 14. Bg3 {[%emt 0:00:26]} Re8 {[%emt 0:02:15]} 15. Qd3 {[%emt 0:00:33]} Nh5 {[%emt 0:01:48]} 16. Na4 {[%emt 0:04:08]} Nxg3 {[%emt 0:01:25]} 17. hxg3 {[%emt 0:00:31]} Bxf3 {[%emt 0:05:28]} 18. gxf3 {[%emt 0:01:41]} Qf6 {[%emt 0:00:48]} 19. Nxb6 {[%emt 0:03:35]} axb6 {[%emt 0:00:19]} 20. b3 {[%emt 0:00:09]} Qg6 {[%emt 0:01:29]} 21. Kg2 {[%emt 0:01:12]} Re5 {[%emt 0:02:20]} 22. g4 {[%emt 0:05:27]} h5 {[%emt 0:02:40]} 23. gxh5 {[%emt 0:01:53]} Qxh5 {[%emt 0:01:14]} 24. Rh1 {[%emt 0:00:10]} Qg6 {[%emt 0:00:21]} 25. Rh3 {[%emt 0:00:35]} Kg7 {[%emt 0:01:22]} 26. Rah1 {[%emt 0:07:56]} Rxa2 {[%emt 0:05:56]} 27. Rh7+ {[%emt 0:01:21]} Qxh7 {[%emt 0:02:33]} 28. Rxh7+ {[%emt 0:00:02]} Kxh7 {[%emt 0:00:13]} 29. Qc3 {[%emt 0:00:13]} Re7 {[%emt 0:04:28]} 30. Qf6 {[%emt 0:00:09]} Re5 {[%emt 0:01:15]} 31. Qxf7+ {[%emt 0:00:12]} Kh6 {[%emt 0:01:05]} 32. Qxc7 {[%emt 0:00:10]} Re8 {[%emt 0:00:57]} 33. Qxd6+ {[%emt 0:00:38]} Kh5 {[%emt 0:05:04]} 34. Qf6 {[%emt 0:00:54]} Rg8 {[%emt 0:00:44]} 35. d6 {[%emt 0:03:41]} Raa8 {[%emt 0:01:10]} 36. Qf7+ {[%emt 0:00:35]} Kh6 {[%emt 0:00:36]} 37. e5 {[%emt 0:00:34]} g4 {[%emt 0:00:35]} 38. Qf4+ {[%emt 0:05:57]} Kh7 {[%emt 0:03:15]} 39. fxg4 {[%emt 0:00:22]} Raf8 {[%emt 0:00:27]} 40. Qe4+ {[%emt 0:00:13]} Kh6 {[%emt 0:01:00]} 41. Kg3 {[%emt 0:00:57]} Ra8 {[%emt 0:07:35]} 42. e6 {[%emt 0:01:06]} Ra1 {[%emt 0:00:23]} 43. e7 {[%emt 0:00:27]} Rg1+ {[%emt 0:00:21]} 44. Kf3 Rh1 {[%emt 0:03:11]} 45. Qe6+ {[%emt 0:01:18]} Kh7 {[%emt 0:00:34]} 46. Qxg8+ Kxg8 {[%emt 0:00:06]} 47. e8=Q+ {[%emt 0:00:20]} Kg7 {[%emt 0:00:09]} 48. d7 {[%emt 0:00:17]} Rh8 {[%emt 0:00:41]} 49. Qxh8+ {[%emt 0:00:06]} Kxh8 {[%emt 0:00:05]} 50. d8=Q+ {[%emt 0:00:05]} Kg7 {[%emt 0:00:13]} 51. Kf4 {[%emt 0:00:20]} b5 {[%emt 0:00:10]} 52. Qe7+ {[%emt 0:00:27]} Kg6 {[%emt 0:00:16]} 53. g5 {[%emt 0:00:16]} b4 {[%emt 0:00:30]} 54. Qf6+ {[%emt 0:00:09]} Kh7 {[%emt 0:00:10]} 55. Kf5 {[%emt 0:02:07]} b5 {[%emt 0:00:09]} 56. g6+ {[%emt 0:00:10]} Kh6 {[%emt 0:00:35]} 57. Qh8# {[%emt 0:00:05]} 1-0

[Event "DMP-III LIGA Senior PK 2020"]
[Site "Bystre"]
[Date "2020.07.10"]
[Round "5.24"]
[White "Wolak, Julia"]
[Black "Polak, Sylwia"]
[Result "0-1"]
[ECO "B42"]
[WhiteElo "1516"]
[BlackElo "1614"]
[Annotator "NA RC"]
[PlyCount "42"]
[EventDate "2020.07.05"]
[EventType "team-tourn"]
[EventCountry "POL"]
[SourceTitle "playchess.com"]
[Source "ChessBase"]
[SourceQuality "1"]
[TimeControl "5400+30"]

1. e4 {[%emt 0:01:08]} c5 {[%emt 0:00:00]} 2. Nf3 {[%emt 0:00:20]} e6 {[%emt 0:00:00]} 3. d4 {[%emt 0:00:36]} cxd4 {[%emt 0:00:00]} 4. Nxd4 {[%emt 0:00:05]} a6 {[%emt 0:00:00]} 5. Bd3 {[%emt 0:00:59]} Qc7 {[%emt 0:00:09]} 6. O-O {[%emt 0:00:28]} Nf6 {[%emt 0:00:19]} 7. Qe2 {[%emt 0:04:22]} d6 {[%emt 0:03:18]} 8. Nc3 {[%emt 0:00:25]} Nbd7 {[%emt 0:01:15]} 9. Re1 {[%emt 0:01:29]} Be7 {[%emt 0:11:20]} 10. Nd5 {[%emt 0:10:06]} exd5 {[%emt 0:10:58]} 11. exd5 {[%emt 0:00:31]} Ne5 {[%emt 0:01:00]} 12. Bf5 {[%emt 0:02:32]} Nxd5 {[%emt 0:18:51]} 13. f4 {[%emt 0:05:05]} Nc6 {[%emt 0:02:23]} 14. Nxc6 {[%emt 0:01:52]} bxc6 {[%emt 0:00:50]} 15. Be4 {[%emt 0:06:32]} Ra7 {[%emt 0:11:08]} 16. c4 {[%emt 0:06:27]} Nf6 {[%emt 0:02:46]} 17. Be3 {[%emt 0:00:52]} Nxe4 {[%emt 0:05:35]} 18. Bxa7 {[%emt 0:01:56]} Qxa7+ {[%emt 0:00:06]} 19. Kf1 {[%emt 0:02:18]} f5 {[%emt 0:04:11]} 20. g4 {[%emt 0:02:46]} O-O {[%emt 0:00:44]} 21. Rad1 {[%emt 0:02:46]} Bh4 {[%emt 0:01:04]} 0-1

[Event "DMP-III LIGA Senior PK 2020"]
[Site "Bystre"]
[Date "2020.07.10"]
[Round "5.26"]
[White "Lach, Ireneusz"]
[Black "Baniak, Lukasz"]
[Result "0-1"]
[ECO "B27"]
[WhiteElo "1897"]
[BlackElo "1939"]
[Annotator "ChessBase"]
[PlyCount "78"]
[EventDate "2020.07.05"]
[EventType "team-tourn"]
[EventCountry "POL"]
[SourceTitle "playchess.com"]
[Source "ChessBase"]
[SourceQuality "1"]
[TimeControl "5400+30"]

1. e4 {[%emt 0:00:00]} c5 {[%emt 0:00:00]} 2. Nf3 {[%emt 0:00:00]} g6 {[%emt 0:00:00]} 3. Nc3 {[%emt 0:00:00]} Bg7 {[%emt 0:00:00]} 4. Bc4 {[%emt 0:02:15]} a6 {[%emt 0:01:03]} 5. a4 {[%emt 0:00:21]} e6 {[%emt 0:00:44]} 6. O-O {[%emt 0:01:00]} Ne7 {[%emt 0:00:13]} 7. e5 {[%emt 0:01:16]} Nbc6 {[%emt 0:03:42]} 8. Qe2 {[%emt 0:11:24]} Qc7 {[%emt 0:01:30]} 9. Re1 {[%emt 0:00:10]} Nf5 {[%emt 0:02:23]} 10. Na2 {[%emt 0:10:45]} Nfd4 {[%emt 0:28:01]} 11. Nxd4 {[%emt 0:02:33]} Nxd4 {[%emt 0:00:06]} 12. Qe4 {[%emt 0:00:20]} b5 {[%emt 0:01:43]} 13. Bd3 {[%emt 0:38:41]} Bb7 {[%emt 0:05:44]} 14. Qh4 {[%emt 0:05:17]} Bxe5 {[%emt 0:05:38]} 15. c3 {[%emt 0:01:48]} Nb3 {[%emt 0:05:19]} 16. Rb1 {[%emt 0:01:24]} c4 {[%emt 0:02:23]} 17. Bc2 {[%emt 0:02:32]} bxa4 {[%emt 0:02:10]} 18. d4 {[%emt 0:01:22]} cxd3 {[%emt 0:00:33]} 19. Bxd3 {[%emt 0:00:22]} Nxc1 {[%emt 0:00:25]} 20. Rbxc1 {[%emt 0:03:22]} O-O {[%emt 0:01:06]} 21. Nb4 {[%emt 0:02:52]} Bg7 {[%emt 0:01:42]} 22. Bf1 {[%emt 0:07:34]} Rfc8 {[%emt 0:08:00]} 23. Ra1 {[%emt 0:01:09]} a5 {[%emt 0:02:13]} 24. Nc2 {[%emt 0:02:28]} Qb6 {[%emt 0:01:53]} 25. Rab1 {[%emt 0:01:44]} Bc6 {[%emt 0:00:24]} 26. Ne3 {[%emt 0:00:43]} Rab8 {[%emt 0:01:29]} 27. Nc4 {[%emt 0:01:23]} Qc5 {[%emt 0:00:21]} 28. Rbd1 {[%emt 0:00:28]} d5 {[%emt 0:00:48]} 29. Ne5 {[%emt 0:00:43]} Bxe5 {[%emt 0:02:23]} 30. Rxe5 {[%emt 0:00:07]} Rxb2 {[%emt 0:00:04]} 31. Rd4 {[%emt 0:00:48]} Qxc3 {[%emt 0:01:15]} 32. Re3 {[%emt 0:00:08]} Qc1 {[%emt 0:01:20]} 33. Rh3 {[%emt 0:00:50]} h5 {[%emt 0:00:09]} 34. f4 {[%emt 0:00:33]} Bb5 {[%emt 0:00:28]} 35. Rf3 {[%emt 0:00:06]} Rb1 {[%emt 0:00:07]} 36. Qf2 {[%emt 0:00:31]} Bxf1 {[%emt 0:00:47]} 37. Qxf1 {[%emt 0:00:07]} Qb2 {[%emt 0:00:33]} 38. Rd1 {[%emt 0:00:13]} Rxd1 {[%emt 0:00:05]} 39. Qxd1 {[%emt 0:00:04]} Rc1 {[%emt 0:00:03]} 0-1

[Event "DMP-III LIGA Senior PK 2020"]
[Site "Bystre"]
[Date "2020.07.10"]
[Round "5.27"]
[White "Biesiadecki, Adam"]
[Black "Janzer, Hubert"]
[Result "1/2-1/2"]
[ECO "A59"]
[WhiteElo "1539"]
[BlackElo "1893"]
[Annotator "NA RC"]
[PlyCount "81"]
[EventDate "2020.07.05"]
[EventType "team-tourn"]
[EventCountry "POL"]
[SourceTitle "playchess.com"]
[Source "ChessBase"]
[SourceQuality "1"]
[TimeControl "5400+30"]

{[%evp 18,80,83,32767,32767,71,95,32767,32767,32767,60,32767,32767,32767,32767,32767,32767,116,32767,32767,32767,32767,106,32767,32767,30,32767,32767,32767,32767,0,-166,32767,32767,32767,-208,-152,32767,0,0,0,0,0,32767,0,0,133,0,0,0,0,0,0,0,0,0,0,0,0,0,0,0,0,-893,-905]} 1. d4 {[%emt 0:00:00]} Nf6 {[%emt 0:00:00]} 2. c4 {[%emt 0:00:00]} c5 {[%emt 0:00:00]} 3. d5 {[%emt 0:00:00]} b5 {[%emt 0:00:00]} 4. cxb5 {[%emt 0:00:00]} a6 {[%emt 0:00:00]} 5. bxa6 {[%emt 0:00:00]} Bxa6 {[%emt 0:00:00]} 6. Nc3 {[%emt 0:00:00]} d6 {[%emt 0:00:00]} 7. e4 {[%emt 0:00:00]} Bxf1 {[%emt 0:00:02]} 8. Kxf1 {[%emt 0:00:01]} g6 {[%emt 0:00:09]} 9. Rb1 {[%emt 0:00:11] A59: Benko/Volga Gambit: White castles by hand.} Qa5 {[%emt 0:01:53]} 10. g3 {[%emt 0:00:55]} Bg7 {[%emt 0:01:24]} 11. Nge2 {[%emt 0:02:01]} O-O {[%emt 0:00:40] [#]} 12. b3 $146 {[%emt 0:01:30]} ({Predecessor:} 12. Kg2 Nbd7 13. Re1 Qa6 14. Bg5 Ne5 15. Nc1 h6 16. Bf4 Nfd7 17. h4 Nc4 18. N1e2 Rfb8 19. Qc2 Rb7 20. Bc1 Rab8 21. Rd1 {0-1 (47) Trenner,R (2261)-Skytte,R (2366) Olomouc 2002}) 12... Na6 {[%emt 0:00:47]} 13. a4 {[%emt 0:01:42]} Nd7 {[%emt 0:03:13]} (13... c4 $11) 14. Nb5 {[%emt 0:02:19]} Nb4 {[%emt 0:04:46]} 15. Kg2 {[%emt 0:02:27]} Ne5 {[%emt 0:13:42]} 16. Bb2 {[%emt 0:01:14]} f5 {[%emt 0:10:24]} 17. Bxe5 $1 {[%emt 0:02:25]} Bxe5 {[%emt 0:00:30]} 18. f4 {[%emt 0:00:17]} Bg7 {[%emt 0:00:38]} 19. Nec3 {[%emt 0:00:28]} fxe4 {[%emt 0:00:48]} 20. Nxe4 {[%emt 0:00:09]} Rf5 {[%emt 0:00:40]} 21. Nec3 {[%emt 0:01:00]} Raf8 {[%emt 0:04:22]} 22. h4 {[%emt 0:06:01]} Qa8 {[%emt 0:02:04]} 23. Qe2 {[%emt 0:01:52]} Nxd5 {[%emt 0:04:19]} 24. Qe6+ $2 {[%emt 0:01:31]} (24. Nxd5 $11 Qxd5+ 25. Qf3) 24... Kh8 {[%emt 0:00:27]} 25. Nxd5 {[%emt 0:00:11]} Rxd5 {[%emt 0:00:40]} 26. Kh3 {[%emt 0:00:44]} Rd2 {[%emt 0:00:25]} 27. Rh2 {[%emt 0:00:33] [#]} Rxh2+ {[%emt 0:01:45]} ({Better is} 27... Rf6 $1 $17 28. Qd7 Rd3) 28. Kxh2 {[%emt 0:00:33]} Bf6 {[%emt 0:02:10]} 29. Rf1 {[%emt 0:03:27]} Qa5 {[%emt 0:01:03]} 30. Rf2 {[%emt 0:00:49]} Kg7 {[%emt 0:05:01]} 31. Re2 {[%emt 0:02:32]} Rd8 {[%emt 0:02:48] [#]} (31... Qa8 $11) 32. Qg4 {[%emt 0:03:52]} (32. g4 $1 $16) 32... d5 {[%emt 0:04:02]} 33. f5 {[%emt 0:03:57]} d4 {[%emt 0:00:46]} 34. fxg6 {[%emt 0:00:42]} hxg6 {[%emt 0:00:07]} 35. h5 {[%emt 0:00:38]} g5 {[%emt 0:02:26]} 36. Qf5 {[%emt 0:01:36]} d3 {[%emt 0:10:02]} 37. Qg6+ {[%emt 0:01:56]} Kh8 {[%emt 0:02:34]} 38. Qh6+ {[%emt 0:03:58]} Kg8 {[%emt 0:00:07]} 39. Qg6+ {[%emt 0:00:04]} Kf8 40. h6 $19 (40. Rf2 $11 Qe1 41. Kg2 (41. Rxf6+ exf6 42. Qxf6+ {[%mdl 64] Double Attack} Ke8 $11)) 40... dxe2 41. h7 1/2-1/2